[Event "The Elitserien 2024/25: round 1 - 3"]
[Site "Scandic Infra City, Kanalvagen 10, Upplands Vasby, Sweden"]
[Date "2024.10.06"]
[Round "3.21"]
[White "Sjodahl, Pontus"]
[Black "Thorn, Eric"]
[Result "1/2-1/2"]
[TimeControl "90 minutes for 40 moves + 30 minutes for the rest of the game + 30 seconds per move from move one."]
[WhiteTitle "IM"]
[BlackTitle "FM"]
[WhiteFideId "1700537"]
[BlackFideId "1710729"]
[WhiteElo "2428"]
[BlackElo "2351"]

1. d4 {[%clk 01:30:56]} {[%emt 00:00:04]} Nf6 {[%clk 01:30:36]} {[%emt
00:00:23]} 2. c4 {[%clk 01:31:18]} {[%emt 00:00:09]} e6 {[%clk 01:30:57]}
{[%emt 00:00:09]} 3. Nc3 {[%clk 01:31:20]} {[%emt 00:00:27]} d5 {[%clk
01:31:22]} {[%emt 00:00:06]} 4. cxd5 {[%clk 01:31:12]} {[%emt 00:00:38]} exd5
{[%clk 01:30:37]} {[%emt 00:01:14]} 5. Bg5 {[%clk 01:31:34]} {[%emt 00:00:09]}
c6 {[%clk 01:31:01]} {[%emt 00:00:05]} 6. Qc2 {[%clk 01:30:41]} {[%emt
00:01:24]} Be7 {[%clk 01:31:15]} {[%emt 00:00:16]} 7. e3 {[%clk 01:31:03]}
{[%emt 00:00:08]} O-O {[%clk 01:31:00]} {[%emt 00:00:45]} 8. Bd3 {[%clk
01:31:18]} {[%emt 00:00:15]} Nbd7 {[%clk 01:31:23]} {[%emt 00:00:06]} 9. Nge2
{[%clk 01:28:13]} {[%emt 00:03:36]} Re8 {[%clk 01:30:58]} {[%emt 00:00:54]} 10.
O-O {[%clk 01:19:03]} {[%emt 00:09:40]} Nf8 {[%clk 01:30:38]} {[%emt 00:00:51]}
11. f3 {[%clk 01:17:43]} {[%emt 00:01:49]} g6 {[%clk 01:30:47]} {[%emt
00:00:21]} 12. Rad1 {[%clk 01:10:20]} {[%emt 00:07:53]} Ne6 {[%clk 01:30:31]}
{[%emt 00:00:46]} 13. Bh4 {[%clk 01:09:36]} {[%emt 00:01:14]} b5 {[%clk
01:30:37]} {[%emt 00:00:25]} 14. Kh1 {[%clk 01:05:25]} {[%emt 00:04:40]} Bb7
{[%clk 01:30:00]} {[%emt 00:01:08]} 15. Bf2 {[%clk 01:01:55]} {[%emt 00:03:59]}
b4 {[%clk 01:26:56]} {[%emt 00:03:34]} 16. Na4 {[%clk 01:00:36]} {[%emt
00:01:50]} Qa5 {[%clk 01:26:57]} {[%emt 00:00:28]} 17. Rd2 {[%clk 00:47:01]}
{[%emt 00:14:06]} Rac8 {[%clk 01:22:09]} {[%emt 00:05:18]} 18. Qd1 {[%clk
00:42:35]} {[%emt 00:04:55]} c5 {[%clk 01:16:59]} {[%emt 00:05:40]} 19. dxc5
{[%clk 00:42:50]} {[%emt 00:00:16]} Nxc5 {[%clk 01:11:16]} {[%emt 00:06:13]} 20.
Bc2 {[%clk 00:42:43]} {[%emt 00:00:38]} Ncd7 {[%clk 00:57:44]} {[%emt
00:14:01]} 21. Nd4 {[%clk 00:33:29]} {[%emt 00:09:44]} Ne5 {[%clk 00:52:38]}
{[%emt 00:05:36]} 22. b3 {[%clk 00:31:25]} {[%emt 00:02:35]} Bf8 {[%clk
00:49:59]} {[%emt 00:03:08]} 23. Re1 {[%clk 00:29:28]} {[%emt 00:02:26]} Bh6
{[%clk 00:46:10]} {[%emt 00:04:19]} 24. Bd3 {[%clk 00:24:57]} {[%emt 00:05:00]}
Nxd3 {[%clk 00:42:12]} {[%emt 00:04:28]} 25. Rxd3 {[%clk 00:25:17]} {[%emt
00:00:10]} Rc7 {[%clk 00:37:37]} {[%emt 00:05:05]} 26. Bh4 {[%clk 00:19:38]}
{[%emt 00:06:09]} Nd7 {[%clk 00:31:31]} {[%emt 00:06:36]} 27. Bg3 {[%clk
00:18:54]} {[%emt 00:01:15]} Rcc8 {[%clk 00:27:59]} {[%emt 00:04:01]} 28. Bf2
{[%clk 00:19:08]} {[%emt 00:00:17]} Bg7 {[%clk 00:22:24]} {[%emt 00:06:04]} 29.
Rd2 {[%clk 00:17:48]} {[%emt 00:01:50]} Nf8 {[%clk 00:19:50]} {[%emt 00:03:04]}
30. Rc2 {[%clk 00:16:00]} {[%emt 00:02:18]} Ne6 {[%clk 00:16:49]} {[%emt
00:03:33]} 31. Rxc8 {[%clk 00:15:10]} {[%emt 00:01:19]} Rxc8 {[%clk 00:17:08]}
{[%emt 00:00:10]} 32. Qd2 {[%clk 00:14:47]} {[%emt 00:00:53]} Nc5 {[%clk
00:11:02]} {[%emt 00:06:37]} 33. Nxc5 {[%clk 00:13:43]} {[%emt 00:01:33]} Qxc5
{[%clk 00:11:13]} {[%emt 00:00:21]} 34. h3 {[%clk 00:11:46]} {[%emt 00:02:25]}
a5 {[%clk 00:09:39]} {[%emt 00:02:04]} 35. Rd1 {[%clk 00:11:08]} {[%emt
00:01:08]} Be5 {[%clk 00:07:04]} {[%emt 00:03:05]} 36. Qd3 {[%clk 00:08:33]}
{[%emt 00:03:05]} Bb8 {[%clk 00:05:46]} {[%emt 00:01:48]} 37. Bg1 {[%clk
00:05:28]} {[%emt 00:03:34]} Qb6 {[%clk 00:04:21]} {[%emt 00:01:56]} 38. Qd2
{[%clk 00:05:16]} {[%emt 00:00:42]} Qc5 {[%clk 00:01:47]} {[%emt 00:03:04]} 39.
Bh2 {[%clk 00:03:43]} {[%emt 00:02:02]} Bxh2 {[%clk 00:01:17]} {[%emt
00:01:01]} 40. Kxh2 {[%clk 00:04:07]} {[%emt 00:00:07]} Ba6 {[%clk 00:00:51]}
{[%emt 00:00:56]} 41. Kg1 {[%clk 00:02:42]} {[%emt 00:01:54]} h5 {[%clk
00:25:02]} {[%emt 00:06:19]} 42. Kf2 {[%clk 00:29:18]} {[%emt 00:03:54]} Rc7
{[%clk 00:19:40]} {[%emt 00:05:53]} 43. Kg1 {[%clk 00:28:51]} {[%emt 00:00:57]}
Rc8 {[%clk 00:20:02]} {[%emt 00:00:07]} 44. Kf2 {[%clk 00:29:09]} {[%emt
00:00:13]} Rc7 {[%clk 00:20:27]} {[%emt 00:00:04]} 45. Kg1 {[%clk 00:29:31]}
{[%emt 00:00:08]} 1/2-1/2

[Event "The Elitserien 2024/25: round 1 - 3"]
[Site "Scandic Infra City, Kanalvagen 10, Upplands Vasby, Sweden"]
[Date "2024.10.06"]
[Round "3.22"]
[White "Westerberg, Jonathan"]
[Black "Mauritsson, Sebastian"]
[Result "1-0"]
[TimeControl "90 minutes for 40 moves + 30 minutes for the rest of the game + 30 seconds per move from move one."]
[WhiteTitle "GM"]
[BlackTitle "FM"]
[WhiteFideId "1701754"]
[BlackFideId "1707892"]
[WhiteElo "2469"]
[BlackElo "2398"]

1. e4 {[%clk 01:30:56]} {[%emt 00:00:03]} c5 {[%clk 01:22:21]} {[%emt
00:08:41]} 2. Nf3 {[%clk 01:31:06]} {[%emt 00:00:19]} d6 {[%clk 01:22:48]}
{[%emt 00:00:03]} 3. Bb5+ {[%clk 01:31:21]} {[%emt 00:00:12]} Nd7 {[%clk
01:23:17]} {[%emt 00:00:05]} 4. d4 {[%clk 01:31:19]} {[%emt 00:00:30]} Ngf6
{[%clk 01:23:42]} {[%emt 00:00:06]} 5. Nc3 {[%clk 01:31:09]} {[%emt 00:00:38]}
a6 {[%clk 01:24:06]} {[%emt 00:00:07]} 6. Bxd7+ {[%clk 01:31:14]} {[%emt
00:00:29]} Nxd7 {[%clk 01:24:35]} 7. O-O {[%clk 01:31:20]} {[%emt 00:00:21]} e6
{[%clk 01:25:03]} {[%emt 00:00:03]} 8. Bg5 {[%clk 01:30:33]} {[%emt 00:01:16]}
Qc7 {[%clk 01:25:31]} {[%emt 00:00:02]} 9. a4 {[%clk 01:27:21]} {[%emt
00:03:40]} f6 {[%clk 01:07:28]} {[%emt 00:18:36]} 10. Be3 {[%clk 01:25:00]}
{[%emt 00:02:48]} Be7 {[%clk 01:07:17]} {[%emt 00:00:44]} 11. d5 {[%clk
01:24:15]} {[%emt 00:01:14]} Ne5 {[%clk 00:56:08]} {[%emt 00:11:39]} 12. Nd2
{[%clk 01:06:46]} {[%emt 00:17:57]} g5 {[%clk 00:54:37]} {[%emt 00:02:04]} 13.
Qh5+ {[%clk 00:52:38]} {[%emt 00:14:38]} Ng6 {[%clk 00:54:53]} {[%emt
00:00:15]} 14. Nc4 {[%clk 00:52:48]} {[%emt 00:00:17]} b6 {[%clk 00:49:38]}
{[%emt 00:05:47]} 15. f4 {[%clk 00:37:07]} {[%emt 00:16:10]} gxf4 {[%clk
00:29:43]} {[%emt 00:20:26]} 16. Bxf4 {[%clk 00:37:26]} {[%emt 00:00:10]} e5
{[%clk 00:26:18]} {[%emt 00:03:55]} 17. Bh6 {[%clk 00:33:58]} {[%emt 00:03:58]}
Rg8 {[%clk 00:25:38]} {[%emt 00:01:10]} 18. a5 {[%clk 00:30:02]} {[%emt
00:04:24]} b5 {[%clk 00:23:16]} {[%emt 00:02:55]} 19. Nb6 {[%clk 00:30:23]}
{[%emt 00:00:08]} Ra7 {[%clk 00:15:48]} {[%emt 00:08:01]} 20. Ne2 {[%clk
00:29:52]} {[%emt 00:01:05]} Bd8 {[%clk 00:14:03]} {[%emt 00:02:11]} 21. Ng3
{[%clk 00:28:26]} {[%emt 00:01:55]} Qb8 {[%clk 00:14:23]} {[%emt 00:00:11]} 22.
Nxc8 {[%clk 00:24:50]} {[%emt 00:04:04]} Qxc8 {[%clk 00:14:52]} {[%emt
00:00:03]} 23. Nf5 {[%clk 00:23:57]} {[%emt 00:01:22]} Be7 {[%clk 00:12:41]}
{[%emt 00:02:41]} 24. Bg7 {[%clk 00:22:02]} {[%emt 00:02:25]} Qd7 {[%clk
00:10:08]} {[%emt 00:03:04]} 25. Qxh7 {[%clk 00:20:47]} {[%emt 00:01:44]} 1-0

[Event "The Elitserien 2024/25: round 1 - 3"]
[Site "Scandic Infra City, Kanalvagen 10, Upplands Vasby, Sweden"]
[Date "2024.10.06"]
[Round "3.23"]
[White "Pantzar, Milton"]
[Black "Lissang, Christopher"]
[Result "1-0"]
[TimeControl "90 minutes for 40 moves + 30 minutes for the rest of the game + 30 seconds per move from move one."]
[WhiteTitle "IM"]
[BlackTitle "FM"]
[WhiteFideId "1721003"]
[BlackFideId "1709615"]
[WhiteElo "2437"]
[BlackElo "2332"]

1. d4 {[%clk 01:30:59]} {[%emt 00:00:01]} Nf6 {[%clk 01:23:23]} {[%emt
00:07:36]} 2. c4 {[%clk 01:31:20]} {[%emt 00:00:09]} e6 {[%clk 01:23:42]}
{[%emt 00:00:11]} 3. Nc3 {[%clk 01:31:35]} {[%emt 00:00:15]} Bb4 {[%clk
01:24:03]} {[%emt 00:00:09]} 4. e3 {[%clk 01:31:57]} {[%emt 00:00:08]} O-O
{[%clk 01:23:31]} {[%emt 00:01:02]} 5. Bd3 {[%clk 01:32:14]} {[%emt 00:00:13]}
d5 {[%clk 01:20:23]} {[%emt 00:03:38]} 6. cxd5 {[%clk 01:32:30]} {[%emt
00:00:14]} exd5 {[%clk 01:20:34]} {[%emt 00:00:19]} 7. Nge2 {[%clk 01:32:52]}
{[%emt 00:00:07]} Re8 {[%clk 01:14:29]} {[%emt 00:06:36]} 8. O-O {[%clk
01:32:56]} {[%emt 00:00:27]} Bd6 {[%clk 01:10:36]} {[%emt 00:04:23]} 9. Qc2
{[%clk 01:32:08]} {[%emt 00:01:17]} Bxh2+ {[%clk 00:45:13]} {[%emt 00:25:54]}
10. Kxh2 {[%clk 01:31:45]} {[%emt 00:00:52]} Ng4+ {[%clk 00:45:37]} {[%emt
00:00:06]} 11. Kg3 {[%clk 01:32:07]} {[%emt 00:00:08]} Qd6+ {[%clk 00:42:10]}
{[%emt 00:03:57]} 12. f4 {[%clk 01:23:48]} {[%emt 00:08:49]} Qh6 {[%clk
00:39:18]} {[%emt 00:03:22]} 13. Bd2 {[%clk 01:16:34]} {[%emt 00:07:44]} Qh2+
{[%clk 00:27:49]} {[%emt 00:11:59]} 14. Kf3 {[%clk 01:14:26]} {[%emt 00:02:38]}
Qh4 {[%clk 00:24:20]} {[%emt 00:03:58]} 15. g3 {[%clk 01:07:30]} {[%emt
00:07:26]} Qh5 {[%clk 00:17:12]} {[%emt 00:07:39]} 16. Rh1 {[%clk 01:01:40]}
{[%emt 00:06:20]} Rxe3+ {[%clk 00:04:30]} {[%emt 00:13:12]} 17. Kg2 {[%clk
00:51:50]} {[%emt 00:10:20]} Nh2 {[%clk 00:01:29]} {[%emt 00:03:32]} 18. Rxh2
{[%clk 00:47:55]} {[%emt 00:04:23]} Qf3+ {[%clk 00:01:11]} {[%emt 00:00:48]} 19.
Kg1 {[%clk 00:48:19]} {[%emt 00:00:07]} Rxd3 {[%clk 00:01:24]} {[%emt
00:00:18]} 20. Rf1 {[%clk 00:46:46]} {[%emt 00:02:02]} 1-0

[Event "The Elitserien 2024/25: round 1 - 3"]
[Site "Scandic Infra City, Kanalvagen 10, Upplands Vasby, Sweden"]
[Date "2024.10.06"]
[Round "3.24"]
[White "Tuomainen, Felix"]
[Black "Smith, Axel"]
[Result "1/2-1/2"]
[TimeControl "90 minutes for 40 moves + 30 minutes for the rest of the game + 30 seconds per move from move one."]
[WhiteTitle "FM"]
[BlackTitle "GM"]
[WhiteFideId "1720813"]
[BlackFideId "1707930"]
[WhiteElo "2247"]
[BlackElo "2430"]

1. d4 {[%emt 00:00:48]} e6 {[%clk 01:30:14]} 2. c4 {[%clk 01:30:25]} {[%emt
00:01:01]} Bb4+ {[%clk 01:30:29]} {[%emt 00:00:16]} 3. Bd2 {[%clk 01:30:29]}
{[%emt 00:00:27]} a5 {[%clk 01:30:52]} {[%emt 00:00:06]} 4. a3 {[%clk
01:29:07]} {[%emt 00:01:51]} Be7 {[%clk 01:28:19]} {[%emt 00:03:04]} 5. d5
{[%clk 01:24:47]} {[%emt 00:04:50]} c6 {[%clk 01:22:08]} {[%emt 00:06:41]} 6.
Bc3 {[%clk 01:23:13]} {[%emt 00:02:02]} Bf6 {[%clk 00:49:28]} {[%emt 00:33:11]}
7. d6 {[%clk 01:21:37]} {[%emt 00:02:07]} c5 {[%clk 00:49:25]} {[%emt
00:00:34]} 8. e4 {[%clk 01:14:54]} {[%emt 00:07:12]} Nc6 {[%clk 00:49:49]}
{[%emt 00:00:06]} 9. Nf3 {[%clk 01:07:55]} {[%emt 00:07:29]} Bxc3+ {[%clk
00:49:55]} {[%emt 00:00:24]} 10. Nxc3 {[%clk 01:08:20]} {[%emt 00:00:05]} Nh6
{[%clk 00:47:37]} {[%emt 00:02:48]} 11. Bd3 {[%clk 00:52:28]} {[%emt 00:16:23]}
f6 {[%clk 00:47:08]} {[%emt 00:00:59]} 12. Qc2 {[%clk 00:48:31]} {[%emt
00:04:26]} e5 {[%clk 00:35:44]} {[%emt 00:11:55]} 13. O-O-O {[%clk 00:43:13]}
{[%emt 00:05:48]} O-O {[%clk 00:35:45]} {[%emt 00:00:30]} 14. Nb5 {[%clk
00:42:56]} {[%emt 00:00:45]} b6 {[%clk 00:34:46]} {[%emt 00:01:30]} 15. Qd2
{[%clk 00:26:11]} {[%emt 00:17:14]} Nf7 {[%clk 00:32:07]} {[%emt 00:03:09]} 16.
g4 {[%clk 00:26:26]} {[%emt 00:00:15]} Ba6 {[%clk 00:26:02]} {[%emt 00:06:36]}
17. Kb1 {[%clk 00:22:19]} {[%emt 00:04:37]} Bxb5 {[%clk 00:15:29]} {[%emt
00:11:02]} 18. cxb5 {[%clk 00:22:46]} {[%emt 00:00:04]} Nd4 {[%clk 00:15:50]}
{[%emt 00:00:08]} 19. Nxd4 {[%clk 00:22:42]} {[%emt 00:00:34]} cxd4 {[%clk
00:16:09]} {[%emt 00:00:13]} 20. Bc4 {[%clk 00:22:45]} {[%emt 00:00:27]} Kh8
{[%clk 00:13:06]} {[%emt 00:03:32]} 21. Bxf7 {[%clk 00:21:41]} {[%emt
00:01:34]} Rxf7 {[%clk 00:13:35]} {[%emt 00:00:01]} 22. Qc2 {[%clk 00:22:02]}
{[%emt 00:00:08]} Qe8 {[%clk 00:02:09]} {[%emt 00:11:56]} 23. Qc7 {[%clk
00:20:45]} {[%emt 00:01:46]} Rb8 {[%emt 00:00:57]} 24. Rc1 {[%clk 00:18:11]}
{[%emt 00:03:02]} Rf8 {[%clk 00:02:14]} {[%emt 00:00:02]} 25. Qc4 {[%clk
00:17:42]} {[%emt 00:00:57]} Qg6 {[%clk 00:02:22]} {[%emt 00:00:24]} 26. f3
{[%clk 00:18:02]} {[%emt 00:00:09]} f5 {[%clk 00:02:23]} {[%emt 00:00:29]} 27.
gxf5 {[%clk 00:16:59]} {[%emt 00:01:34]} Qxd6 {[%clk 00:02:52]} 28. h4 {[%clk
00:16:42]} {[%emt 00:00:48]} g6 {[%clk 00:02:21]} {[%emt 00:01:01]} 29. fxg6
{[%clk 00:16:30]} {[%emt 00:00:42]} Qxg6 {[%clk 00:02:50]} 30. Rhg1 {[%clk
00:13:05]} {[%emt 00:03:55]} Qf7 {[%clk 00:02:23]} {[%emt 00:00:56]} 31. Qc7
{[%clk 00:12:25]} {[%emt 00:01:09]} Qxf3 {[%clk 00:02:16]} {[%emt 00:00:39]} 32.
Qxe5+ {[%clk 00:11:10]} {[%emt 00:01:45]} Qf6 {[%clk 00:02:45]} 33. Qd5 {[%clk
00:11:07]} {[%emt 00:00:31]} Rbe8 {[%clk 00:01:58]} {[%emt 00:01:19]} 34. Qxd7
{[%clk 00:09:10]} {[%emt 00:02:27]} Re7 {[%clk 00:02:07]} {[%emt 00:00:21]} 35.
Qd5 {[%clk 00:08:53]} {[%emt 00:00:46]} Qe5 {[%clk 00:01:33]} {[%emt 00:01:05]}
36. Rg4 {[%clk 00:06:03]} {[%emt 00:03:19]} h5 {[%clk 00:01:14]} {[%emt
00:00:50]} 37. Rg5 {[%clk 00:05:31]} {[%emt 00:01:02]} Qxe4+ {[%clk 00:01:41]}
{[%emt 00:00:02]} 38. Qxe4 {[%clk 00:05:48]} {[%emt 00:00:13]} Rxe4 {[%clk
00:02:10]} {[%emt 00:00:01]} 39. Rxh5+ {[%clk 00:05:43]} {[%emt 00:00:34]} Kg7
{[%clk 00:02:01]} {[%emt 00:00:39]} 40. Rg1+ {[%clk 00:04:41]} {[%emt
00:01:31]} Kf6 {[%clk 00:00:41]} {[%emt 00:01:50]} 41. Rf1+ {[%clk 00:01:06]}
{[%emt 00:04:06]} Ke7 {[%clk 00:00:43]} {[%emt 00:00:28]} 42. Rh7+ {[%clk
00:00:57]} {[%emt 00:00:38]} Ke8 {[%clk 00:01:06]} {[%emt 00:00:08]} 43. Rxf8+
{[%clk 00:27:16]} {[%emt 00:04:11]} Kxf8 {[%clk 00:31:34]} {[%emt 00:00:03]} 44.
h5 {[%clk 00:26:03]} {[%emt 00:01:42]} d3 {[%clk 00:17:20]} {[%emt 00:14:43]}
45. Rd7 {[%clk 00:25:03]} {[%emt 00:01:29]} Re1+ {[%clk 00:10:32]} {[%emt
00:07:19]} 46. Ka2 {[%clk 00:25:07]} {[%emt 00:00:26]} Rh1 {[%clk 00:10:37]}
{[%emt 00:00:26]} 47. Rxd3 {[%clk 00:25:13]} {[%emt 00:00:23]} Rxh5 {[%clk
00:11:06]} {[%emt 00:00:01]} 48. a4 {[%clk 00:25:17]} {[%emt 00:00:26]} Ke7
{[%clk 00:11:25]} {[%emt 00:00:12]} 49. Rc3 {[%clk 00:22:18]} {[%emt 00:03:27]}
Rh6 {[%clk 00:11:16]} {[%emt 00:00:40]} 50. Rc7+ {[%clk 00:21:24]} {[%emt
00:01:22]} Kd8 {[%clk 00:11:39]} {[%emt 00:00:08]} 51. Rg7 {[%clk 00:21:35]}
{[%emt 00:00:18]} Rh4 {[%clk 00:10:11]} {[%emt 00:01:59]} 52. Kb3 {[%clk
00:20:49]} {[%emt 00:01:11]} Kc8 {[%clk 00:10:15]} {[%emt 00:00:31]} 53. Rg6
{[%clk 00:18:35]} {[%emt 00:02:45]} Kb7 {[%clk 00:10:35]} {[%emt 00:00:09]} 54.
Rc6 {[%clk 00:18:27]} {[%emt 00:00:34]} Rb4+ {[%clk 00:10:51]} {[%emt
00:00:19]} 55. Ka3 {[%clk 00:18:50]} {[%emt 00:00:07]} Rh4 {[%clk 00:11:06]}
{[%emt 00:00:15]} 56. b3 {[%clk 00:18:52]} {[%emt 00:00:27]} Rh2 {[%clk
00:09:38]} {[%emt 00:01:58]} 57. Rc3 {[%clk 00:18:53]} {[%emt 00:00:26]} Kb8
{[%clk 00:07:55]} {[%emt 00:02:17]} 58. b4 {[%clk 00:19:04]} {[%emt 00:00:17]}
axb4+ {[%clk 00:08:24]} {[%emt 00:00:04]} 59. Kxb4 {[%clk 00:19:29]} {[%emt
00:00:07]} Kb7 {[%clk 00:08:29]} {[%emt 00:00:22]} 60. Rc4 {[%clk 00:19:34]}
{[%emt 00:00:20]} Rh1 {[%clk 00:08:06]} {[%emt 00:00:57]} 61. Re4 {[%clk
00:18:02]} {[%emt 00:02:01]} Rc1 {[%clk 00:07:22]} {[%emt 00:01:15]} 62. Re7+
{[%clk 00:16:11]} {[%emt 00:02:24]} Kb8 {[%clk 00:07:24]} {[%emt 00:00:24]} 63.
Re8+ {[%clk 00:16:31]} {[%emt 00:00:10]} 1/2-1/2

[Event "The Elitserien 2024/25: round 1 - 3"]
[Site "Scandic Infra City, Kanalvagen 10, Upplands Vasby, Sweden"]
[Date "2024.10.06"]
[Round "3.25"]
[White "Lukez, Giamfranko"]
[Black "Neiksans, Arturs"]
[Result "0-1"]
[TimeControl "90 minutes for 40 moves + 30 minutes for the rest of the game + 30 seconds per move from move one."]
[WhiteTitle "FM"]
[BlackTitle "GM"]
[WhiteFideId "1700626"]
[BlackFideId "11601388"]
[WhiteElo "2281"]
[BlackElo "2571"]

1. g3 {[%clk 01:30:52]} {[%emt 00:00:08]} e5 {[%clk 01:30:32]} {[%emt
00:00:29]} 2. Bg2 {[%clk 01:31:08]} {[%emt 00:00:14]} d5 {[%clk 01:30:43]}
{[%emt 00:00:19]} 3. d3 {[%clk 01:31:23]} {[%emt 00:00:15]} Nc6 {[%clk
01:26:51]} {[%emt 00:04:22]} 4. Nf3 {[%clk 01:31:04]} {[%emt 00:00:47]} Nf6
{[%clk 01:23:08]} {[%emt 00:04:14]} 5. O-O {[%clk 01:31:00]} {[%emt 00:00:34]}
Bd6 {[%clk 01:23:04]} {[%emt 00:00:34]} 6. c4 {[%clk 01:30:21]} {[%emt
00:01:10]} d4 {[%clk 01:22:56]} {[%emt 00:00:38]} 7. e3 {[%clk 01:30:12]}
{[%emt 00:00:38]} O-O {[%clk 01:21:06]} {[%emt 00:02:20]} 8. exd4 {[%clk
01:29:24]} {[%emt 00:01:18]} exd4 {[%clk 01:20:57]} {[%emt 00:00:39]} 9. Bg5
{[%clk 01:29:31]} {[%emt 00:00:22]} h6 {[%clk 01:17:23]} {[%emt 00:04:04]} 10.
Bxf6 {[%clk 01:29:50]} {[%emt 00:00:12]} Qxf6 {[%clk 01:17:47]} {[%emt
00:00:05]} 11. Nbd2 {[%clk 01:29:25]} {[%emt 00:00:56]} Qd8 {[%clk 01:15:59]}
{[%emt 00:02:18]} 12. a3 {[%clk 01:26:15]} {[%emt 00:03:41]} a5 {[%clk
01:15:55]} {[%emt 00:00:33]} 13. Ne1 {[%clk 01:24:20]} {[%emt 00:02:25]} Re8
{[%clk 01:09:15]} {[%emt 00:07:11]} 14. Nc2 {[%clk 01:21:53]} {[%emt 00:02:56]}
Ne5 {[%clk 01:07:41]} {[%emt 00:02:04]} 15. Nxd4 {[%clk 01:14:05]} {[%emt
00:08:18]} Nxd3 {[%clk 00:57:58]} {[%emt 00:10:14]} 16. N2f3 {[%clk 00:48:02]}
{[%emt 00:26:32]} Ne5 {[%clk 00:57:20]} {[%emt 00:01:09]} 17. Qc2 {[%clk
00:46:08]} {[%emt 00:02:24]} c6 {[%clk 00:45:38]} {[%emt 00:12:12]} 18. Rad1
{[%clk 00:38:48]} {[%emt 00:07:50]} Nxf3+ {[%clk 00:41:08]} {[%emt 00:05:00]}
19. Nxf3 {[%clk 00:35:10]} {[%emt 00:04:09]} Qf6 {[%clk 00:39:34]} {[%emt
00:02:03]} 20. c5 {[%clk 00:35:14]} {[%emt 00:00:25]} Bf8 {[%clk 00:35:46]}
{[%emt 00:04:18]} 21. Nd4 {[%clk 00:34:09]} {[%emt 00:01:36]} a4 {[%clk
00:35:12]} {[%emt 00:01:04]} 22. Qc3 {[%clk 00:30:59]} {[%emt 00:03:39]} Bg4
{[%clk 00:31:55]} {[%emt 00:03:47]} 23. f3 {[%clk 00:28:04]} {[%emt 00:03:25]}
Bh5 {[%clk 00:30:49]} {[%emt 00:01:37]} 24. b4 {[%clk 00:28:26]} {[%emt
00:00:07]} axb3 {[%clk 00:30:54]} {[%emt 00:00:25]} 25. Qb4 {[%clk 00:27:00]}
{[%emt 00:01:57]} b2 {[%clk 00:29:12]} {[%emt 00:02:12]} 26. Kh1 {[%clk
00:25:42]} {[%emt 00:01:46]} Bg6 {[%clk 00:28:49]} {[%emt 00:00:55]} 27. Qxb2
{[%clk 00:25:34]} {[%emt 00:00:38]} Bxc5 {[%clk 00:29:12]} {[%emt 00:00:07]} 28.
Qc3 {[%clk 00:25:38]} {[%emt 00:00:27]} Bxa3 {[%clk 00:28:34]} {[%emt
00:01:07]} 0-1